Cogmind - Beta 15 @@@ ROGUE MODE // 2025.05.21 @ 21:03:00 Player: GiggleBox Result: Destroyed by S-27 Virus with Autogun Performance ------------- Evolutions (3) 1500 Regions Visited (5) 1000 Robots Destroyed (32) 160 Value Destroyed (744) 744 Prototype IDs (5) 100 Alien Tech Used (0) 0 Bonus (218) 218 TOTAL SCORE: 3722 Bonus ------- High Alert Combat Kills 18 Entered Garrisons 200 Cogmind --------- Core Integrity 0/700 Matter 200/300 Energy 99/100 System Corruption 0% Temperature Cool (0) Movement Core (50) Location -7/Garrison Parts ------- > --- POWER (1) -------- (None) > --- PROPULSION (5) --- (None) > --- UTILITY (5) ------ Hacking Suite > --- WEAPON (2) ------- (None) > --- INVENTORY (5) ---- Improved Heat Sink Compact Battery (200) Datajack Heavy Flail Katana Peak State ------------ > --- POWER ------------ Micro Nuclear Core > --- PROPULSION ------- Cesium-ion Thruster Cesium-ion Thruster Cesium-ion Thruster Cesium-ion Thruster > --- UTILITY ---------- Small Storage Unit Seismic Detector Melee Analysis Suite Improved Light Armor Plating Hacking Suite > --- WEAPON ----------- Heavy Flail Katana > --- INVENTORY -------- Light Deuterium Engine Compact Wheel Improved Heat Sink Compact Battery Advanced Weight Redist. System Force Booster Missile Launcher Datajack [Rating: 35] Favorites ----------- Power Ion Engine Engine Ion Engine Power Core Micro Nuclear Core Propulsion Compact Wheel Treads Light Treads Wheel Compact Wheel Flight Unit Cesium-ion Thruster Utility Small Storage Unit Device Seismic Detector Storage Small Storage Unit Processor Melee Analysis Suite Hackware Hacking Suite Protection Improved Light Armor Plating Weapon Assault Rifle Energy Gun Medium Laser Ballistic Gun Assault Rifle Launcher Missile Launcher Impact Weapon Heavy Flail Slashing Weapon Katana Special Melee Weapon Datajack Build | -11 -10 -10 -8 -7 -7 ------- Run | Yrd Mat Sub Mat Fac Gar Slots Evolved 6 | . . . 4 2 . Power . | . . . . . . Propulsion 3 | . . . 2 1 . Utility 3 | . . . 2 1 . Weapon . | . . . . . . Parts Attached 35 | 9 6 2 13 3 2 Power 5 | 2 . . 1 1 1 Engine 4 | 2 . . 1 . 1 Core 1 | . . . . 1 . Reactor . | . . . . . . Propulsion 10 | 2 2 1 5 . . Treads 3 | . 2 1 . . . Leg . | . . . . . . Wheel 3 | 2 . . 1 . . Hover . | . . . . . . Flight 4 | . . . 4 . . Utility 8 | 2 1 . 3 2 . Device 3 | 1 . . 1 1 . Storage 1 | 1 . . . . . Processor 1 | . . . 1 . . Hackware 1 | . . . . 1 . Protection 2 | . 1 . 1 . . Artifact . | . . . . . . Weapon 12 | 3 3 1 4 . 1 Energy Gun 2 | 1 1 . . . . Energy Cannon . | . . . . . . Ballistic Gun 4 | 2 1 1 . . . Ballistic Cannon . | . . . . . . Launcher 1 | . . . . . 1 Special Weapon . | . . . . . . Impact Weapon 1 | . . . 1 . . Slashing Weapon 3 | . . . 3 . . Piercing Weapon . | . . . . . . Special Melee Weapon 1 | . 1 . . . . Unidentified Prototypes . | . . . . . . Parts Lost 12 | . 1 . . 1 10 Power 2 | . . . . . 2 Propulsion 4 | . . . . 1 3 Utility 4 | . . . . . 4 Weapon 2 | . 1 . . . 1 Highest Loss Streak 5 | . 1 . . 1 5 To Critical Strikes . | . . . . . . Average Backups 7 | 3 7 8 7 7 7 Power . | . 1 1 1 1 . Propulsion 2 | 1 2 3 1 1 . Utility 1 | . 1 2 2 3 3 Weapon 1 | . 2 1 2 1 1 Tool/Special . | . . . . . . Unused Backups 9 | . . . 5 1 3 Power 1 | . . . 1 . . Propulsion 1 | . . . 1 . . Utility 5 | . . . 1 1 3 Weapon 2 | . . . 2 . . Tool/Special . | . . . . . . Average Slot Usage (%) 94 | . 99 100 95 91 69 Engine 11 | . 14 14 9 7 . Treads 2 | . . 23 2 . . Wheel 16 | . 27 4 2 . . Flight 8 | . . . 31 29 17 Device 11 | . 12 8 9 8 12 Storage 11 | . 14 14 9 7 6 Processor 1 | . . . 7 7 . Hackware 1 | . . . . 5 7 Protection 3 | . 1 5 8 7 4 Energy Gun 8 | . 12 14 1 . . Ballistic Gun 9 | . 14 14 1 . . Impact Weapon 1 | . . . 4 7 5 Slashing Weapon 2 | . . . 9 7 5 Peak Build Rating 35 | 7 8 9 31 35 33 Average Rating 13 | 5 7 8 27 33 25 On Entrance 14 | . 7 8 9 31 33 Naked Turns . | . . . . . . Heaviest Build 20 | 15 17 17 20 20 20 Greatest Support 40 | 32 32 40 36 24 24 Greatest Overweight (x) 3 | 1 . . 3 . . Average Overweight (x) . | . . . . . . Largest Inventory Capacity 8 | 8 8 8 8 8 8 Average Capacity 7 | 7 8 8 8 8 7 Most Carried 8 | 5 8 8 8 8 8 Average Carried 7 | 3 7 8 7 7 7 Final Capacity 8 | 8 8 8 8 8 5 Final Carried 8 | 4 8 8 8 8 5 Class Distribution -------------------- 73% | Mutant 25% | Sprinter Dominant Class ---------------- Mutant | -10/Materials Mutant | -10/Subcaves Sprinter | -8/Materials Sprinter | -7/Factory Sprinter | -7/Garrison Resources | -11 -10 -10 -8 -7 -7 ----------- Run | Yrd Mat Sub Mat Fac Gar Matter Collected 889 | 399 219 84 146 . 41 Remotely . | . . . . . . Salvage Created 833 | 250 423 25 85 . 50 Parts 57 | 13 27 7 5 . 5 Haulers Intercepted 3 | . 2 . 1 . . Recyclers Shooed . | . . . . . . Parts Field Recycled . | . . . . . . Retrieved Matter . | . . . . . . Parts Self-Destructed 10 | . . 10 . . . Prevented . | . . . . . . Kills | -11 -10 -10 -8 -7 -7 ------- Run | Yrd Mat Sub Mat Fac Gar Combat Hostiles Destroyed 14 | . 7 2 . . 5 Guns 9 | . 7 2 . . . AOE 5 | . . . . . 5 Classes Destroyed 8 | 2 6 . . . . Worker 1 | . 1 . . . . Tunneler 7 | 7 . . . . . Hauler 3 | . 2 . 1 . . Recycler 1 | 1 . . . . . Operator 2 | . 1 . 1 . . Watcher 4 | . 3 . 1 . . Swarmer 10 | . 3 2 . . 5 Grunt 4 | . 4 . . . . Best Kill Streak 4 | 4 4 2 1 . 3 Combat Bots Only 4 | . 4 2 . . 3 Max Kills in Single Turn 2 | 1 1 1 1 . 2 Gunslinging . | . . . . . . Exploded 2 | . . . . . 2 Melee . | . . . . . . Uniques/NPCs Destroyed . | . . . . . . Combat | -11 -10 -10 -8 -7 -7 -------- Run | Yrd Mat Sub Mat Fac Gar Hostile Shots Fired 299 | . 39 23 19 20 198 Missed 141 | . 14 6 8 14 99 Hits 158 | . 25 17 11 6 99 Melee 3 | . . . . . 3 Projectile 155 | . 25 17 11 6 96 Critical Strikes 2 | . . 2 . . . Damage Taken 2102 | . 273 225 118 85 1401 Core 810 | . 51 44 . 40 675 Absorbed by Shields 76 | . . . . . 76 Regen/Repaired (Parts) 20 | . . . . 20 . Core Remaining (%) 87 | 100 . 62 100 . . Volleys Fired 77 | 26 38 8 . . 5 Largest 2 | 2 2 2 . . 1 Hottest 70 | 70 70 70 . . 36 Shots Fired 147 | 52 74 16 . . 5 Gun 142 | 52 74 16 . . . Cannon . | . . . . . . Launcher 5 | . . . . . 5 Special . | . . . . . . Kinetic 79 | 33 38 8 . . . Thermal 63 | 19 36 8 . . . Explosive 5 | . . . . . 5 Electromagnetic . | . . . . . . Robot Hit Streak 11 | 6 11 6 . . 2 Robot Miss Streak 5 | 5 3 2 . . 2 Penetration Max . | . . . . . . Secondary Targets 1 | . 1 . . . . Max Gunslinging Chain 1 | . 1 . . . . Shots Hit Robots 96 | 27 50 10 7 . 2 Core Hits 43 | 9 23 2 3 . 6 Critical Kills 1 | . 1 . . . . Critical Parts Destroyed . | . . . . . . Critical Strikes 6 | 4 2 . . . . Burn 5 | 4 1 . . . . Destroy 1 | . 1 . . . . Melee Attacks 27 | . 1 . 9 1 16 Impact 4 | . . . 1 . 3 Slashing 22 | . . . 8 1 13 Piercing . | . . . . . . Sneak Attacks 2 | . 1 . 1 . . Combat Hostiles . | . . . . . . Follow-up Attacks 1 | . . . 1 . . Damage Inflicted 1940 | 355 635 122 334 . 494 Guns 1112 | 355 635 122 . . . Cannons . | . . . . . . Explosions 480 | . . . . . 480 Melee 334 | . . . 334 . . Ramming 14 | . . . . . 14 Kinetic 563 | 178 326 59 . . . Thermal 549 | 177 309 63 . . . Explosive 480 | . . . . . 480 Electromagnetic . | . . . . . . Impact 42 | . . . 42 . . Slashing 292 | . . . 292 . . Piercing . | . . . . . . Highest Corruption 2 | . . . 2 . . Average Corruption 2 | . . . 2 . . Corruption Purged . | . . . . . . Corruption Blocked . | . . . . . . Effects 2 | . . . 2 . . Matter Fused 2 | . . . 2 . . Overload Shots . | . . . . . . Overflow Damage 54 | . . . 15 . 39 Projectiles . | . . . . . . Explosions 39 | . . . . . 39 Melee 15 | . . . 15 . . Knockbacks . | . . . . . . Impact . | . . . . . . Kinetic . | . . . . . . Secondary . | . . . . . . Self-Inflicted Damage 149 | . . . . . 149 Shots 3 | . . . . . 3 Rammed 2 | . . . . . 2 Targets Rammed 2 | . . . . . 2 Kicked . | . . . . . . Crushed . | . . . . . . Highest Temperature 243 | 54 243 . 10 4 23 Average Temperature 43 | 19 57 . 4 4 8 Received Heat Transfer 396 | . 120 42 36 18 180 Siege Activations . | . . . . . . Martial Activations . | . . . . . . Shielding Activations . | . . . . . . Robots Disrupted . | . . . . . . Combat Hostiles . | . . . . . . Robots Corrupted . | . . . . . . Combat Hostiles . | . . . . . . Parts Fried . | . . . . . . Impact Corruptions . | . . . . . . Robots Melted . | . . . . . . Combat Hostiles . | . . . . . . Parts Melted 5 | 5 . . . . . Heat Transferred 1998 | 814 999 185 . . . Parts Sabotaged . | . . . . . . Parts Stolen . | . . . . . . Parts Stripped . | . . . . . . Power Chain Reactions . | . . . . . . Alert | -11 -10 -10 -8 -7 -7 ------- Run | Yrd Mat Sub Mat Fac Gar Maximum Alert Level 2 | . . . . . 2 Low Security (%) 90 | 100 100 . 100 100 26 Level 1 7 | . . . . . 60 Level 2 1 | . . . . . 13 Level 3 . | . . . . . . Level 4 . | . . . . . . Level 5 . | . . . . . . High Security . | . . . . . . Max Security . | . . . . . . Peak Influence 483 | 10 74 . 119 91 483 Initial 49 | . . . . 49 49 Average 54 | 1 18 . 20 56 293 Influence Increases 1173 | 40 267 50 190 92 534 Destroy 0b10 Robot/C 280 | . 140 40 . . 100 Destroy 0b10 Robot/NC 90 | 40 35 . 15 . . Destroy Leader 64 | . 40 10 4 . 10 Trap Triggered on 0b10 40 | . . . . . 40 Successful Hack 119 | . 52 . 21 46 . Disable Machine 45 | . . . . . 45 Anti-Garrison Action 50 | . . . . . 50 Destroy Structure 50 | . . . . 1 49 Partial Spotted 30 | . . . 30 . . Lose Combat Pursuer 405 | . . . 120 45 240 Influence Decreases 690 | 40 267 50 81 130 122 Entered New Map 82 | . . . . 60 22 Time Decay 488 | 40 257 50 81 60 . Lost Part 120 | . 10 . . 10 100 Squads Dispatched 1 | . . . 1 . . Investigation 1 | . . . 1 . . Extermination . | . . . . . . Reinforcement . | . . . . . . Assault . | . . . . . . Garrison . | . . . . . . Intercept . | . . . . . . Searches Triggered . | . . . . . . Construction Impeded . | . . . . . . Haulers Reinforced . | . . . . . . Active Scanning Responses . | . . . . . . Cargo Convoy Interrupts . | . . . . . . Stealth | -11 -10 -10 -8 -7 -7 --------- Run | Yrd Mat Sub Mat Fac Gar Distress Signals 4 | . 1 . 2 1 . Communications Jammed . | . . . . . . Distress Signals . | . . . . . . Times Spotted 91 | . 11 5 19 16 40 Peak Tracking Total 15 | . 4 5 8 15 15 Tactical Retreats 12 | . . . 4 1 7 Traps | -11 -10 -10 -8 -7 -7 ------- Run | Yrd Mat Sub Mat Fac Gar Traps Triggered 6 | . 1 . 1 . 4 Indirectly . | . . . . . . Trap Hack Attempts 7 | . 7 . . . . Triggered . | . . . . . . Disarmed 6 | . . . 6 . . Reprogrammed 2 | . 2 . . . . Reused 4 | . . . . . 4 Traps Extracted . | . . . . . . Installed 5 | . . . . . 5 Triggered 4 | . . . . . 4 Most Traps Carried 1 | . . . . . 1 Machines | -11 -10 -10 -8 -7 -7 ---------- Run | Yrd Mat Sub Mat Fac Gar Machines Disabled 4 | . . . . . 4 Max in Single Turn 1 | . . . . . 1 Garrison Relay 1 | . . . . . 1 Machines Repaired . | . . . . . . Machines Dismantled . | . . . . . . Machines Sabotaged . | . . . . . . Overloaded Fab Kills . | . . . . . . Hacking | -11 -10 -10 -8 -7 -7 --------- Run | Yrd Mat Sub Mat Fac Gar Machines Accessed 22 | . 8 . 7 6 1 Terminals 18 | . 8 . 6 3 1 Fabricators . | . . . . . . Repair Stations 1 | . . . . 1 . Recycling Units . | . . . . . . Scanalyzers . | . . . . . . Garrison Access 3 | . . . 1 2 . Total Hacks 62 | . 24 . 25 11 2 Successful 33 | . 12 . 16 5 . Failed 29 | . 12 . 9 6 2 Catastrophic 2 | . 1 . . 1 . Database Lockouts . | . . . . . . Manual 26 | . 7 . 16 3 . Terminals 54 | . 24 . 23 5 2 Fabricators . | . . . . . . Repair Stations 2 | . . . . 2 . Recycling Units . | . . . . . . Scanalyzers . | . . . . . . Garrison Access 6 | . . . 2 4 . Terminal Hacks 16 | . 8 . 7 1 . Part Schematic 2 | . 2 . . . . Prototype ID Bank 2 | . 1 . 1 . . Branch Access Points 1 | . . . 1 . . Emergency Access Points 1 | . . . 1 . . Terminal Index 2 | . 1 . . 1 . Locate Traps 4 | . 2 . 2 . . Disarm Traps 1 | . . . 1 . . Registered Prototypes 1 | . 1 . . . . Zone Layout 2 | . 1 . 1 . . Fabricator Hacks . | . . . . . . Repair Station Hacks 2 | . . . . 2 . Scan Component 1 | . . . . 1 . Repair 1 | . . . . 1 . Recycling Unit Hacks . | . . . . . . Scanalyzer . | . . . . . . Garrison Access Hacks 1 | . . . . 1 . Unlock Access 1 | . . . . 1 . Unauthorized Hacks 14 | . 4 . 9 1 . Terminals 14 | . 4 . 9 1 . Assimilate 1 | . . . 1 . . Botnet 7 | . 3 . 3 1 . Operators 2 | . 1 . 1 . . Skim 4 | . . . 4 . . Fabricators . | . . . . . . Repair Stations . | . . . . . . Recycling Units . | . . . . . . Scanalyzers . | . . . . . . Garrison Access . | . . . . . . Data Cores Recovered 2 | . 1 . 1 . . Used . | . . . . . . Hacking Detections 19 | . 7 . 6 5 1 Full Trace Events 1 | . . . 1 . . Feedback Events . | . . . . . . Feedback Blocked . | . . . . . . Robot Schematics Acquired . | . . . . . . Robots Built . | . . . . . . Authchips . | . . . . . . Time . | . . . . . . Total Robot Build Rating . | . . . . . . Part Schematics Acquired 2 | . 2 . . . . Parts Built . | . . . . . . Authchips . | . . . . . . Time . | . . . . . . Total Part Build Rating . | . . . . . . Parts Repaired 1 | . . . . 1 . Time 19 | . . . . 19 . Parts Recycled . | . . . . . . Recycled Matter . | . . . . . . Retrieved Matter . | . . . . . . Retrieved Components . | . . . . . . Parts Scanalyzed . | . . . . . . Part Schematics Acquired . | . . . . . . Parts Damaged . | . . . . . . Bothacking | -11 -10 -10 -8 -7 -7 ------------ Run | Yrd Mat Sub Mat Fac Gar Used RIF Installer . | . . . . . . Robots Hacked . | . . . . . . Non-combat . | . . . . . . Combat . | . . . . . . Robot Hacks Applied . | . . . . . . Relay Couplers Released 4 | . . . . . 4 Machine Destruction 4 | . . . . . 4 Fabnet Peak Effective % . | . . . . . . Robots Rewired . | . . . . . . Allies Hacked . | . . . . . . Hacks Repelled . | . . . . . . Allies | -11 -10 -10 -8 -7 -7 -------- Run | Yrd Mat Sub Mat Fac Gar Total Allies 1 | . . . 1 . . Largest Group 1 | . . . 1 . . Highest-Rated Group 10 | . . . 10 . . Highest-Rated Ally 10 | . . . 10 . . Total Orders . | . . . . . . Ally Attacks . | . . . . . . Total Damage . | . . . . . . Kills . | . . . . . . Allies Corrupted . | . . . . . . Allies Melted . | . . . . . . Intel | -11 -10 -10 -8 -7 -7 ------- Run | Yrd Mat Sub Mat Fac Gar Active Infowar (turns) 1637 | 15 974 92 260 117 179 Seismic 1637 | 15 974 92 260 117 179 Robot Analysis Total . | . . . . . . Derelict Logs Recovered . | . . . . . . Drone Launches . | . . . . . . Drone Recoveries . | . . . . . . Exploration | -11 -10 -10 -8 -7 -7 ------------- Run | Yrd Mat Sub Mat Fac Gar Turns Passed 2138 | 273 1063 161 260 121 260 Spaces Moved 2510 | 178 866 84 602 343 437 Core 94 | 9 . . . . 85 Treads 72 | . . 72 . . . Legs . | . . . . . . Wheels 1055 | 169 866 12 8 . . Hover . | . . . . . . Flight 1289 | . . . 594 343 352 Fastest Speed 26 | 50 100 100 26 26 29 Average Speed 62 | 98 100 151 27 26 33 Slowest Speed 305 | 100 100 160 305 29 50 Overloaded Moves . | . . . . . . Propulsion Burnouts . | . . . . . . Robots Hopped 20 | . . . 7 9 4 Potential Cave-ins . | . . . . . . Cave-ins Triggered . | . . . . . . Exploration Rate (%) 38 | 5 96 7 58 13 51 Regions Visited 5 Branch Regions 1 Pre-discovered Areas . | . . . . . . Known Exits Taken 1 | . . . . 1 . Unknown Exits Taken 4 | 1 1 1 1 . . Scrap Searched . | . . . . . . Spaces Dug 6 | . . . . 1 5 Terrain Destroyed 58 | . . . . 1 57 Melee 6 | . . . . 1 5 Projectile . | . . . . . . AOE 52 | . . . . . 52 Terrain Rammed . | . . . . . . Walls Destroyed . | . . . . . . Machines Disabled . | . . . . . . Actions | -11 -10 -10 -8 -7 -7 --------- Run | Yrd Mat Sub Mat Fac Gar Total 2869 | 218 985 104 676 363 523 Wait 118 | 1 52 3 34 19 9 Move 2469 | 177 865 83 589 326 429 Hop 16 | . . . 5 8 3 Pick Up 29 | 4 7 2 9 2 5 Fast Attach 14 | 6 2 . 5 1 . Attach 8 | 1 1 . 3 1 2 Detach 4 | . . . 2 . 2 Swap 32 | 3 10 5 8 3 3 Drop 25 | . 2 3 13 2 5 Fire 77 | 26 38 8 . . 5 Melee 23 | . 1 . 8 1 13 Ram 2 | . . . . . 2 Kick . | . . . . . . Crush . | . . . . . . Escape Stasis 40 | . . . . . 40 Rewire . | . . . . . . Trap 12 | . 7 . . . 5 Miscellaneous . | . . . . . . Route ------- -11/Scrapyard -10/Materials (discovered 6 exits: [*Mat x3] / [*Min x2] / [*Sub]) -10/Subcaves (discovered 2 exits: *Mat x2) -8/Materials -7/Factory -7/Garrison (discovered 1 exit: [*Fac]) History --------- Turn | Location | Event 19 | -11/Scrapyard | Discovered new exit (range 16) 274 | -11/Scrapyard | Entered Materials 318 | -10/Materials | Build established: Mutant 347 | -10/Materials | Discovered new exit (range 5) 782 | -10/Materials | Discovered new exit (range 16) 1004 | -10/Materials | Discovered new exit (range 8) 1140 | -10/Materials | Discovered new exit (range 16) 1256 | -10/Materials | Discovered new exit (range 16) 1325 | -10/Materials | Discovered new exit (range 13) 1337 | -10/Materials | Entered Subcaves 1338 | -10/Subcaves | Approached by a straggling Scientist 1339 | -10/Subcaves | Shifting Twisted Machinery released Sub. Machine Gun 1458 | -10/Subcaves | Discovered new exit (range 8) 1460 | -10/Subcaves | Shifting Twisted Machinery released Spk. Treads 1486 | -10/Subcaves | Discovered new exit (range 8) 1498 | -10/Subcaves | Entered Materials 1498 | -8/Materials | Evolved 4 slots: Propulsion x2, Utility x2 1754 | -8/Materials | Discovered new exit (range 16) 1758 | -8/Materials | Entered Factory 1758 | -7/Factory | Evolved 2 slots: Propulsion x1, Utility x1 1789 | -7/Factory | Repaired Cesium-ion Thruster 1879 | -7/Factory | Identified exit to Garrison 1879 | -7/Factory | Entered Garrison 1903 | -7/Garrison | Triggered checkpoint 1918 | -7/Garrison | Garrison Relay disabled 1957 | -7/Garrison | Triggered checkpoint 1983 | -7/Garrison | Discovered new exit (range 14) 1987 | -7/Garrison | Attempted to access garrison exit controls, blocked by remote lockdown 2091 | -7/Garrison | Core integrity fell below 50% 2104 | -7/Garrison | Lost 5 parts (1p3n1u) 2109 | -7/Garrison | Triggered checkpoint 2121 | -7/Garrison | Core integrity fell below 20% 2135 | -7/Garrison | Triggered checkpoint 2139 | -7/Garrison | Destroyed by S-27 Virus with Autogun Last Messages --------------- 02090_ An explosion rips through the floor. 02090_ L-41 Fighter destroyed. 02093_ Penetrated by Slug. 02109_ Beams of light sweep through the air. An alarm sounds. 02110_ Lgt. Deuterium Engine destroyed. 02111_ Slammed into S-27 Virus. 02111_ Seismic Detector destroyed. 02112_ Slammed into S-27 Virus. 02113_ S-27 Virus destroyed. 02116_ Acquired 17 matter. 02117_ The unstable cave ceiling collapses. 02117_ Adv. Weight Redist. System destroyed. 02117_ Destroyed Adv. Weight Redist. System. 02117_ S-27 Virus destroyed. 02117_ Destroyed Lgt. Nuclear Core. 02118_ The unstable cave ceiling collapses. 02119_ Sml. Storage Unit destroyed. 02119_ Destroyed Sml. Storage Unit. 02119_ Missile Launcher destroyed. 02135_ Beams of light sweep through the air. An alarm sounds. Map ----- +----------------------------------------------------+ | ??????????????????????????????????????????? | | ??????????????????????????????????????????? | | ??????????????????????????????????????????? | | ??????????????????????????????????????????? | | ??????????????????????????????????????????? | | ??????????????????????????????????????????? | | ??????????????????????????????????????????? | | ??????????????????????????????????????????? | | #?????????????????????????????????????????? | | ####??????????????????????????????????????? | | ???????????????????????????????????????? | | ???????????????????????????????????????? | | #?????????????????????????????????????????? | | #?????????????????????????????????????????? | | "?????????????????????????????????????????? | | "?????????????????????##??????????????????? | | "????????????????????#!???????????????????? | | "????????######?????? ????????????????????? | | #??????### #????? #????????????????????? | | ######## = ###### ######???????????????? | | = #???????????????? | | % ! #### ### #???????????????? | | ####### #??# #?# #???????????????? | | #?????# ##??#####?# ###?????????????? | | ??????# #?????????# #"#?????????????? | | ??????# ######?????????#@ "#?????????????? | | ??????# #??????????????# "#?????????????? | | ??????# #??????????????# "#?????????????? | | ??????# #??????????????# #"#?????????????? | | ??????# #??????????????# ###?????????????? | | ####### ###??????# ????# #???????????????? | | #T######## ###s#???????????????? | | #???????????????? | | ####### ########### ######???????????????? | | ??????# #?????????# #????????????????????? | | ??????# #?????????# ????????????????????? | | ??????# #?????????###!???????????????????? | | ??????# #????????????##??????????????????? | | ??????# #????????????????????????????????? | | ??????# #????????????????????????????????? | | ??????# ????????????????????????????????? | | ??????# ????????????????????????????????? | | ??????####????????????????????????????????? | | ??????????????????????????????????????????? | | ??????????????????????????????????????????? | | ??????????????????????????????????????????? | | ??????????????????????????????????????????? | | ??????????????????????????????????????????? | | ??????????????????????????????????????????? | | ??????????????????????????????????????????? | +----------------------------------------------------+ Best States ------------- Heat Dissipation 34 Energy Generation 15 Energy Capacity 250 Matter Stores 300 Matter Capacity 300 Sight Range 16 Terrain Scan Density 10 Additional Mass Support 9 Armor Coverage 150 Evasion (%) 64 Melee Accuracy 5 Recoil Reduction 2 Offensive Hacking 10 Item Schematics ----------------- Hcp. Storage Unit | -10/Materials | Hacked Seismic Detector | -10/Materials | Hacked Robot Schematics ------------------ None Fabricated ------------ Nothing Repaired ---------- Cesium-ion Thruster | 20% | -7/Factory Alien Tech Used ----------------- None Achievements -------------- None Challenges ------------ None Game ------ Seed StealthProtonDisintegrator Manual? 0 Play Time 00:33:54 Cumulative 110.1 hours Start 2025.05.21 @ 20:31:17 End 2025.05.21 @ 21:03:00 Sessions 1 Manual Loads 0 Difficulty Rogue Special Mode None Game No. 113 Rogue 113 Adventurer 0 Explorer 0 Win Type - Total 1 Types 1/0/0/0/0/0/0/0/0/0 Lore% 63 Gallery% 56 Achievement% 47 Wizard Run 0 Options --------- Layout 0 ASCII 0 Keyboard 1 Movement Numpad Keybinds 0 Fullscreen 1 Font 24/Terminus Map View 76x50 Zoom Use 0% Tactical HUD 1 Map Filters NONE Filters NONE Steam 1 RUN: 07870eea-87d8-47cc-8ec2-ea1b34916e50